[Event "*** SCC Grand Prix: Titled Tuesday Blitz"]
[Site "Chess.com"]
[Date "2020.06.09"]
[Round "2"]
[White "2L8IWUN"]
[Black "CookiesAndIceCream"]
[Result "1-0"]
[WhiteElo "2542"]
[BlackElo "2313"]
[TimeControl "180+1"]
[EndTime "9:14:23 PDT"]
[Termination "2L8IWUN won by resignation"]

1. e4 {[%clk 0:03:00.9]} 1... e6 {[%clk 0:02:57.3]} 2. c4 {[%clk 0:02:59.6]}
2... d5 {[%clk 0:02:57]} 3. cxd5 {[%clk 0:02:56.8]} 3... exd5 {[%clk 0:02:57.9]}
4. Qb3 {[%clk 0:02:56.3]} 4... Nf6 {[%clk 0:02:42.8]} 5. Nc3 {[%clk 0:02:43.9]}
5... dxe4 {[%clk 0:02:26.4]} 6. Bc4 {[%clk 0:02:41]} 6... Qd7 {[%clk 0:02:24.9]}
7. d3 {[%clk 0:02:32.8]} 7... Nc6 {[%clk 0:02:22.9]} 8. dxe4 {[%clk 0:02:16.8]}
8... Na5 {[%clk 0:02:19.9]} 9. Qb5 {[%clk 0:02:13.7]} 9... Nxc4 {[%clk 0:02:17]}
10. Qxc4 {[%clk 0:02:10.2]} 10... Bd6 {[%clk 0:02:11.5]} 11. Nf3 {[%clk
0:02:07.8]} 11... O-O {[%clk 0:02:09.6]} 12. O-O {[%clk 0:02:05.4]} 12... Qe6
{[%clk 0:02:06.5]} 13. Qxe6 {[%clk 0:02:02.6]} 13... Bxe6 {[%clk 0:01:50.9]} 14.
e5 {[%clk 0:02:01.8]} 14... Bc4 {[%clk 0:01:44.2]} 15. Rd1 {[%clk 0:01:56.4]}
1-0

[Event "*** SCC Grand Prix: Titled Tuesday Blitz"]
[Site "Chess.com"]
[Date "2020.06.09"]
[Round "2"]
[White "ARMQUEEN"]
[Black "blitzking1729"]
[Result "0-1"]
[WhiteElo "2308"]
[BlackElo "2541"]
[TimeControl "180+1"]
[EndTime "9:14:25 PDT"]
[Termination "blitzking1729 won by resignation"]

1. e4 {[%clk 0:02:49]} 1... d6 {[%clk 0:02:59.3]} 2. d4 {[%clk 0:02:48.1]} 2...
Nf6 {[%clk 0:02:54.6]} 3. Nc3 {[%clk 0:02:45.4]} 3... e5 {[%clk 0:02:54.1]} 4.
Nf3 {[%clk 0:02:42.4]} 4... Nbd7 {[%clk 0:02:53.5]} 5. Bc4 {[%clk 0:02:40]} 5...
Be7 {[%clk 0:02:53.1]} 6. Bxf7+ {[%clk 0:02:34.4]} 6... Kxf7 {[%clk 0:02:52.7]}
7. Ng5+ {[%clk 0:02:34.8]} 7... Kg8 {[%clk 0:02:52.7]} 8. Ne6 {[%clk 0:02:35.7]}
8... Qe8 {[%clk 0:02:52.6]} 9. Nxc7 {[%clk 0:02:36.1]} 9... Qg6 {[%clk
0:02:49.9]} 10. Nxa8 {[%clk 0:02:24.7]} 10... Qxg2 {[%clk 0:02:46.3]} 11. Rf1
{[%clk 0:02:25.2]} 11... exd4 {[%clk 0:01:58]} 12. Qxd4 {[%clk 0:02:14.9]} 12...
Ne5 {[%clk 0:01:56.2]} 13. Qe3 {[%clk 0:02:12.7]} 13... Bh3 {[%clk 0:01:48.8]}
14. Kd2 {[%clk 0:01:51.4]} 14... Nc4+ {[%clk 0:01:34.1]} 0-1

[Event "*** SCC Grand Prix: Titled Tuesday Blitz"]
[Site "Chess.com"]
[Date "2020.06.09"]
[Round "2"]
[White "Munkhzul_Turmunkh"]
[Black "mishanick"]
[Result "0-1"]
[WhiteElo "2601"]
[BlackElo "2946"]
[TimeControl "180+1"]
[EndTime "9:14:42 PDT"]
[Termination "mishanick won by resignation"]

1. e4 {[%clk 0:03:00.9]} 1... c5 {[%clk 0:02:53.1]} 2. Nf3 {[%clk 0:03:00.8]}
2... d6 {[%clk 0:02:50.9]} 3. d4 {[%clk 0:03:01]} 3... cxd4 {[%clk 0:02:51.8]}
4. Nxd4 {[%clk 0:03:01.6]} 4... Nf6 {[%clk 0:02:51.7]} 5. Nc3 {[%clk 0:03:02.1]}
5... a6 {[%clk 0:02:52.1]} 6. Be3 {[%clk 0:03:02.3]} 6... e5 {[%clk 0:02:51.5]}
7. Nb3 {[%clk 0:03:02.9]} 7... Be6 {[%clk 0:02:51.3]} 8. f3 {[%clk 0:03:03.5]}
8... Nbd7 {[%clk 0:02:51.5]} 9. Qd2 {[%clk 0:03:03.9]} 9... b5 {[%clk
0:02:51.7]} 10. g4 {[%clk 0:03:03.4]} 10... Be7 {[%clk 0:02:51]} 11. O-O-O
{[%clk 0:03:02.7]} 11... b4 {[%clk 0:02:50.9]} 12. Nd5 {[%clk 0:02:27.7]} 12...
Bxd5 {[%clk 0:02:50.8]} 13. exd5 {[%clk 0:02:28.6]} 13... Nb6 {[%clk 0:02:51.3]}
14. Na5 {[%clk 0:02:21.9]} 14... Nbxd5 {[%clk 0:02:50.1]} 15. Nc4 {[%clk
0:02:20.4]} 15... Nxe3 {[%clk 0:02:48.1]} 16. Nxe3 {[%clk 0:02:19.2]} 16... O-O
{[%clk 0:02:48.3]} 17. h4 {[%clk 0:02:15.7]} 17... a5 {[%clk 0:02:45]} 18. Nf5
{[%clk 0:02:05.5]} 18... Rc8 {[%clk 0:02:41.7]} 19. Nxe7+ {[%clk 0:01:46.9]}
19... Qxe7 {[%clk 0:02:41.4]} 20. Qxd6 {[%clk 0:01:47.8]} 20... Qa7 {[%clk
0:02:32.6]} 21. Qxe5 {[%clk 0:01:33.5]} 21... a4 {[%clk 0:02:32.1]} 22. Kb1
{[%clk 0:01:28.6]} 22... Rfe8 {[%clk 0:02:28.8]} 23. Qb5 {[%clk 0:01:25.5]}
23... a3 {[%clk 0:02:26.6]} 24. b3 {[%clk 0:01:22.6]} 24... Qd4 {[%clk
0:02:19.7]} 0-1

[Event "*** SCC Grand Prix: Titled Tuesday Blitz"]
[Site "Chess.com"]
[Date "2020.06.09"]
[Round "2"]
[White "ElviraBerend"]
[Black "PavelShkapenko"]
[Result "1/2-1/2"]
[WhiteElo "2386"]
[BlackElo "2679"]
[TimeControl "180+1"]
[EndTime "9:14:43 PDT"]
[Termination "Game drawn by repetition"]

1. d4 {[%clk 0:02:59.9]} 1... Nf6 {[%clk 0:02:59.6]} 2. c4 {[%clk 0:02:59.4]}
2... e6 {[%clk 0:03:00]} 3. g3 {[%clk 0:02:58.5]} 3... Bb4+ {[%clk 0:02:59.8]}
4. Bd2 {[%clk 0:02:57.5]} 4... Qe7 {[%clk 0:03:00]} 5. Nf3 {[%clk 0:02:55]} 5...
Nc6 {[%clk 0:02:59.9]} 6. Nc3 {[%clk 0:02:54.1]} 6... Bxc3 {[%clk 0:02:59.8]} 7.
Bxc3 {[%clk 0:02:53.4]} 7... Ne4 {[%clk 0:03:00.3]} 8. Rc1 {[%clk 0:02:52.3]}
8... O-O {[%clk 0:02:58.7]} 9. Bg2 {[%clk 0:02:51.2]} 9... d6 {[%clk 0:02:59]}
10. d5 {[%clk 0:02:48.1]} 10... Nxc3 {[%clk 0:02:58.8]} 11. Rxc3 {[%clk
0:02:47.5]} 11... Nb8 {[%clk 0:02:59.4]} 12. dxe6 {[%clk 0:02:43.1]} 12... fxe6
{[%clk 0:02:59.5]} 13. O-O {[%clk 0:02:42.5]} 13... Nd7 {[%clk 0:02:58.9]} 14.
Qc2 {[%clk 0:02:33.1]} 14... Nf6 {[%clk 0:02:55.3]} 15. Ng5 {[%clk 0:02:25]}
15... c6 {[%clk 0:02:36.1]} 16. Rd1 {[%clk 0:02:16.5]} 16... d5 {[%clk
0:02:31.5]} 17. cxd5 {[%clk 0:02:14.8]} 17... exd5 {[%clk 0:02:30.2]} 18. Re3
{[%clk 0:02:12.9]} 18... Qb4 {[%clk 0:02:09.2]} 19. Rf3 {[%clk 0:02:08.3]} 19...
Qe7 {[%clk 0:02:04]} 20. Re3 {[%clk 0:02:06.8]} 20... Qd8 {[%clk 0:01:55.8]} 21.
Rf3 {[%clk 0:01:59.2]} 21... Qe7 {[%clk 0:01:20.4]} 22. Re3 {[%clk 0:01:58.3]}
1/2-1/2

[Event "*** SCC Grand Prix: Titled Tuesday Blitz"]
[Site "Chess.com"]
[Date "2020.06.09"]
[Round "2"]
[White "IriBu"]
[Black "Y0ung_Capablanca"]
[Result "1-0"]
[WhiteElo "2529"]
[BlackElo "2740"]
[TimeControl "180+1"]
[EndTime "9:14:47 PDT"]
[Termination "IriBu won by resignation"]

1. e4 {[%clk 0:03:00.8]} 1... c6 {[%clk 0:02:58.5]} 2. d4 {[%clk 0:02:58.3]}
2... d5 {[%clk 0:02:59]} 3. e5 {[%clk 0:02:58.4]} 3... c5 {[%clk 0:02:57.5]} 4.
dxc5 {[%clk 0:02:57.6]} 4... e6 {[%clk 0:02:57.7]} 5. Be3 {[%clk 0:02:56.3]}
5... Ne7 {[%clk 0:02:55.6]} 6. f4 {[%clk 0:02:55.4]} 6... Nec6 {[%clk
0:02:54.1]} 7. Nf3 {[%clk 0:02:54.2]} 7... Nd7 {[%clk 0:02:50.6]} 8. Bb5 {[%clk
0:02:48]} 8... Bxc5 {[%clk 0:02:46.8]} 9. Bxc5 {[%clk 0:02:33.9]} 9... Nxc5
{[%clk 0:02:47.7]} 10. Bxc6+ {[%clk 0:02:31.3]} 10... bxc6 {[%clk 0:02:47.6]}
11. O-O {[%clk 0:02:31.4]} 11... Qb6 {[%clk 0:02:46.2]} 12. Kh1 {[%clk
0:02:18.5]} 12... Ba6 {[%clk 0:02:35.9]} 13. Re1 {[%clk 0:02:15.4]} 13... Ne4
{[%clk 0:02:35]} 14. Qd4 {[%clk 0:01:59.8]} 14... c5 {[%clk 0:02:32]} 15. Qe3
{[%clk 0:01:52.2]} 15... O-O {[%clk 0:01:58.3]} 16. b3 {[%clk 0:01:51.6]} 16...
Bb7 {[%clk 0:01:58.5]} 17. Nbd2 {[%clk 0:01:50.8]} 17... d4 {[%clk 0:01:58.7]}
18. Qe2 {[%clk 0:01:48.8]} 18... Nc3 {[%clk 0:01:59.1]} 19. Qd3 {[%clk
0:01:45.9]} 19... Ba6 {[%clk 0:01:57.3]} 20. Nc4 {[%clk 0:01:45.4]} 20... Qb4
{[%clk 0:01:49.4]} 21. Ng5 {[%clk 0:01:44.8]} 21... g6 {[%clk 0:01:48.6]} 22. a3
{[%clk 0:01:38.5]} 22... Bxc4 {[%clk 0:01:44.6]} 23. Qh3 {[%clk 0:01:38]} 1-0

[Event "*** SCC Grand Prix: Titled Tuesday Blitz"]
[Site "Chess.com"]
[Date "2020.06.09"]
[Round "2"]
[White "StephenDedalus83"]
[Black "Logman74"]
[Result "1-0"]
[WhiteElo "2740"]
[BlackElo "2369"]
[TimeControl "180+1"]
[EndTime "9:14:56 PDT"]
[Termination "StephenDedalus83 won by resignation"]

1. e4 {[%clk 0:03:00.9]} 1... c5 {[%clk 0:02:59.5]} 2. Nf3 {[%clk 0:02:58.6]}
2... d6 {[%clk 0:02:59.2]} 3. d4 {[%clk 0:02:58.5]} 3... cxd4 {[%clk 0:02:59.2]}
4. Nxd4 {[%clk 0:02:59.4]} 4... Nf6 {[%clk 0:02:59.5]} 5. Nc3 {[%clk 0:02:59.4]}
5... a6 {[%clk 0:03:00.1]} 6. h3 {[%clk 0:02:58.7]} 6... e5 {[%clk 0:02:59.5]}
7. Nf3 {[%clk 0:02:57.8]} 7... Be7 {[%clk 0:02:59.2]} 8. Bc4 {[%clk 0:02:57.4]}
8... O-O {[%clk 0:02:59.2]} 9. Bg5 {[%clk 0:02:56.7]} 9... Be6 {[%clk 0:02:58]}
10. Qe2 {[%clk 0:02:55.6]} 10... Nbd7 {[%clk 0:02:56.8]} 11. Rd1 {[%clk
0:02:54.3]} 11... Qc7 {[%clk 0:02:55.4]} 12. Bb3 {[%clk 0:02:53.3]} 12... b5
{[%clk 0:02:54.7]} 13. O-O {[%clk 0:02:50.4]} 13... h6 {[%clk 0:02:53.4]} 14.
Bxf6 {[%clk 0:02:49.6]} 14... Nxf6 {[%clk 0:02:51.9]} 15. Nd5 {[%clk 0:02:50]}
15... Nxd5 {[%clk 0:02:50.4]} 16. Bxd5 {[%clk 0:02:50.3]} 16... Rac8 {[%clk
0:02:49]} 17. c3 {[%clk 0:02:50.2]} 17... Bxd5 {[%clk 0:02:48.2]} 18. Rxd5
{[%clk 0:02:49.8]} 18... Qc4 {[%clk 0:02:47.6]} 19. Qxc4 {[%clk 0:02:47.3]}
19... Rxc4 {[%clk 0:02:47.4]} 20. Nd2 {[%clk 0:02:46.2]} 20... Rc6 {[%clk
0:02:45.8]} 21. Rd1 {[%clk 0:02:46]} 21... Rb8 {[%clk 0:02:39.8]} 22. a3 {[%clk
0:02:38.8]} 22... a5 {[%clk 0:02:38.7]} 23. Nb3 {[%clk 0:02:38.7]} 23... a4
{[%clk 0:02:32]} 24. Nc1 {[%clk 0:02:38.4]} 24... Rc5 {[%clk 0:02:30.7]} 25. Na2
{[%clk 0:02:31.6]} 25... Rbc8 {[%clk 0:02:26.9]} 26. Nb4 {[%clk 0:02:30.4]}
26... Kf8 {[%clk 0:02:24.5]} 27. Kf1 {[%clk 0:02:28.1]} 27... Ke8 {[%clk
0:02:23.1]} 28. Ke2 {[%clk 0:02:27.7]} 28... Kd7 {[%clk 0:02:22.3]} 29. Rxc5
{[%clk 0:02:27.2]} 29... Rxc5 {[%clk 0:02:21.3]} 30. Nd3 {[%clk 0:02:27.8]}
30... Rc8 {[%clk 0:02:15.9]} 31. Nxe5+ {[%clk 0:02:27.7]} 31... Ke6 {[%clk
0:02:15.9]} 32. Nd3 {[%clk 0:02:27.1]} 32... g5 {[%clk 0:02:13.1]} 33. Nb4
{[%clk 0:02:26.4]} 33... f5 {[%clk 0:02:12]} 34. exf5+ {[%clk 0:02:25.4]} 34...
Kxf5 {[%clk 0:02:12.5]} 35. Rd5+ {[%clk 0:02:25.9]} 35... Ke6 {[%clk 0:02:10.7]}
36. Rxb5 {[%clk 0:02:26.8]} 36... Bf6 {[%clk 0:02:06.3]} 37. Nd5 {[%clk
0:02:25.2]} 37... Be5 {[%clk 0:02:05.9]} 38. Ne3 {[%clk 0:02:24.3]} 38... h5
{[%clk 0:02:01.6]} 39. Rb4 {[%clk 0:02:23.3]} 39... Rf8 {[%clk 0:01:55.8]} 40.
Rxa4 {[%clk 0:02:21.7]} 40... Rb8 {[%clk 0:01:55.9]} 41. Rb4 {[%clk 0:02:21.5]}
41... Rc8 {[%clk 0:01:55.6]} 42. Nc4 {[%clk 0:02:20.4]} 42... Bf4 {[%clk
0:01:54]} 43. g3 {[%clk 0:02:18.9]} 43... Be5 {[%clk 0:01:47.6]} 44. Nxe5 {[%clk
0:02:18.7]} 1-0

[Event "*** SCC Grand Prix: Titled Tuesday Blitz"]
[Site "Chess.com"]
[Date "2020.06.09"]
[Round "2"]
[White "Caterpiller35"]
[Black "stanyga"]
[Result "0-1"]
[WhiteElo "2301"]
[BlackElo "2661"]
[TimeControl "180+1"]
[EndTime "9:15:24 PDT"]
[Termination "stanyga won by resignation"]

1. d4 {[%clk 0:02:59.8]} 1... d5 {[%clk 0:02:59.5]} 2. Bf4 {[%clk 0:02:59.7]}
2... Nf6 {[%clk 0:02:58.9]} 3. e3 {[%clk 0:02:59.9]} 3... g6 {[%clk 0:02:58.7]}
4. Nc3 {[%clk 0:02:59]} 4... Bg7 {[%clk 0:02:57.9]} 5. h4 {[%clk 0:02:45.5]}
5... c5 {[%clk 0:02:57.2]} 6. Nb5 {[%clk 0:02:37.5]} 6... Na6 {[%clk 0:02:56.8]}
7. a4 {[%clk 0:02:33.8]} 7... h6 {[%clk 0:02:54.1]} 8. c3 {[%clk 0:02:33.2]}
8... c4 {[%clk 0:02:51.3]} 9. Nf3 {[%clk 0:02:29.4]} 9... Qb6 {[%clk 0:02:48.2]}
10. Ne5 {[%clk 0:02:27.1]} 10... Ne4 {[%clk 0:02:37.7]} 11. b3 {[%clk
0:02:23.7]} 11... cxb3 {[%clk 0:02:26.6]} 12. Qxb3 {[%clk 0:02:24.6]} 12... Be6
{[%clk 0:02:19.9]} 13. Bd3 {[%clk 0:01:56.9]} 13... O-O {[%clk 0:02:13.5]} 14.
Rb1 {[%clk 0:01:36.7]} 14... Rac8 {[%clk 0:02:09.5]} 15. Bxe4 {[%clk 0:01:21.1]}
15... dxe4 {[%clk 0:02:09]} 16. d5 {[%clk 0:01:21.3]} 16... Nc5 {[%clk
0:02:08.5]} 17. dxe6 {[%clk 0:01:02.8]} 17... Nxb3 {[%clk 0:02:07]} 18. exf7+
{[%clk 0:01:00.2]} 18... Kh7 {[%clk 0:02:05.7]} 19. Rxb3 {[%clk 0:00:56.6]}
19... Bxe5 {[%clk 0:02:04.4]} 20. Bxe5 {[%clk 0:00:55.9]} 20... Qe6 {[%clk
0:02:04.4]} 0-1

[Event "*** SCC Grand Prix: Titled Tuesday Blitz"]
[Site "Chess.com"]
[Date "2020.06.09"]
[Round "2"]
[White "arminmusovic"]
[Black "Training_Day"]
[Result "1-0"]
[WhiteElo "2538"]
[BlackElo "2308"]
[TimeControl "180+1"]
[EndTime "9:15:36 PDT"]
[Termination "arminmusovic won on time"]

1. a3 {[%clk 0:03:00.9]} 1... e5 {[%clk 0:02:57.1]} 2. Nc3 {[%clk 0:03:00.5]}
2... Nf6 {[%clk 0:02:55.6]} 3. d4 {[%clk 0:03:00.8]} 3... exd4 {[%clk
0:02:49.2]} 4. Qxd4 {[%clk 0:03:01.7]} 4... Nc6 {[%clk 0:02:49.5]} 5. Qa4 {[%clk
0:03:02]} 5... d5 {[%clk 0:02:46.3]} 6. Bg5 {[%clk 0:03:02]} 6... d4 {[%clk
0:02:33.6]} 7. O-O-O {[%clk 0:03:01.6]} 7... Bd7 {[%clk 0:02:31.7]} 8. Nb5
{[%clk 0:03:01.4]} 8... Bc5 {[%clk 0:02:12.7]} 9. Nf3 {[%clk 0:02:59.1]} 9... a6
{[%clk 0:02:05.3]} 10. Qc4 {[%clk 0:02:59.2]} 10... axb5 {[%clk 0:00:58.4]} 11.
Qxc5 {[%clk 0:02:58.8]} 11... b4 {[%clk 0:00:51.6]} 12. Nxd4 {[%clk 0:02:53.8]}
12... bxa3 {[%clk 0:00:49.6]} 13. bxa3 {[%clk 0:02:52.8]} 13... Qe7 {[%clk
0:00:38.6]} 14. Qxe7+ {[%clk 0:02:51.9]} 14... Kxe7 {[%clk 0:00:39.5]} 15. Nxc6+
{[%clk 0:02:48.7]} 15... Bxc6 {[%clk 0:00:37.7]} 16. Kb2 {[%clk 0:02:42.9]}
16... Ra5 {[%clk 0:00:34.4]} 17. Bd2 {[%clk 0:02:38]} 17... Rb5+ {[%clk
0:00:20.1]} 18. Bb4+ {[%clk 0:02:38.1]} 18... Ke6 {[%clk 0:00:19.8]} 19. e4
{[%clk 0:02:38]} 19... Rb6 {[%clk 0:00:18.1]} 20. Bc4+ {[%clk 0:02:36.9]} 20...
Ke5 {[%clk 0:00:15.1]} 21. Rhe1 {[%clk 0:02:36.2]} 21... Bb5 {[%clk 0:00:09.1]}
22. Bxf7 {[%clk 0:02:32.9]} 22... Bd7 {[%clk 0:00:03.2]} 23. g3 {[%clk
0:02:28.8]} 1-0

[Event "*** SCC Grand Prix: Titled Tuesday Blitz"]
[Site "Chess.com"]
[Date "2020.06.09"]
[Round "2"]
[White "2346PL"]
[Black "Gromes7"]
[Result "1-0"]
[WhiteElo "2407"]
[BlackElo "2043"]
[TimeControl "180+1"]
[EndTime "9:15:41 PDT"]
[Termination "2346PL won by resignation"]

1. d4 {[%clk 0:03:00.9]} 1... Nf6 {[%clk 0:02:56.8]} 2. Bg5 {[%clk 0:03:00.9]}
2... e6 {[%clk 0:02:56.1]} 3. Nf3 {[%clk 0:03:00.4]} 3... d5 {[%clk 0:02:55.3]}
4. Nbd2 {[%clk 0:03:00.4]} 4... c5 {[%clk 0:02:53]} 5. e3 {[%clk 0:02:59.2]}
5... Nc6 {[%clk 0:02:50.6]} 6. c3 {[%clk 0:02:59.4]} 6... h6 {[%clk 0:02:42.4]}
7. Bh4 {[%clk 0:02:57.6]} 7... Be7 {[%clk 0:02:38.8]} 8. Bd3 {[%clk 0:02:57.6]}
8... O-O {[%clk 0:02:33.4]} 9. O-O {[%clk 0:02:57.7]} 9... Nd7 {[%clk
0:02:27.4]} 10. Bg3 {[%clk 0:02:55.5]} 10... Re8 {[%clk 0:02:12.3]} 11. e4
{[%clk 0:02:53.7]} 11... cxd4 {[%clk 0:02:02.8]} 12. cxd4 {[%clk 0:02:53.8]}
12... dxe4 {[%clk 0:01:52.6]} 13. Nxe4 {[%clk 0:02:54.7]} 13... Qb6 {[%clk
0:01:52.6]} 14. Qd2 {[%clk 0:02:38.1]} 14... Nxd4 {[%clk 0:01:29.2]} 15. Nxd4
{[%clk 0:02:36.3]} 15... Qxd4 {[%clk 0:01:29.4]} 16. Nd6 {[%clk 0:02:33.6]}
16... Qxd6 {[%clk 0:01:06]} 17. Bxd6 {[%clk 0:02:31.9]} 17... Bxd6 {[%clk
0:01:06.9]} 18. Rac1 {[%clk 0:02:09.9]} 18... Be5 {[%clk 0:00:52.7]} 19. Qe2
{[%clk 0:02:04.5]} 19... Bf6 {[%clk 0:00:41.7]} 20. Bb5 {[%clk 0:02:03.5]} 20...
a6 {[%clk 0:00:40.8]} 21. Rxc8 {[%clk 0:02:00.6]} 21... axb5 {[%clk 0:00:37.9]}
22. Rxe8+ {[%clk 0:01:58.9]} 22... Rxe8 {[%clk 0:00:38.5]} 23. Qxb5 {[%clk
0:01:59.4]} 23... Rd8 {[%clk 0:00:32]} 24. Rd1 {[%clk 0:01:57.5]} 1-0

[Event "*** SCC Grand Prix: Titled Tuesday Blitz"]
[Site "Chess.com"]
[Date "2020.06.09"]
[Round "2"]
[White "SantoBlue"]
[Black "SCIM"]
[Result "1-0"]
[WhiteElo "2791"]
[BlackElo "2548"]
[TimeControl "180+1"]
[EndTime "9:15:48 PDT"]
[Termination "SantoBlue won by resignation"]

1. e4 {[%clk 0:03:00.9]} 1... c5 {[%clk 0:02:59]} 2. Nf3 {[%clk 0:02:59.9]} 2...
e6 {[%clk 0:02:59.2]} 3. Nc3 {[%clk 0:02:58.3]} 3... Nc6 {[%clk 0:02:58.5]} 4.
d4 {[%clk 0:02:57.2]} 4... cxd4 {[%clk 0:02:59.4]} 5. Nxd4 {[%clk 0:02:57.4]}
5... Qc7 {[%clk 0:02:59.1]} 6. g3 {[%clk 0:02:56.8]} 6... a6 {[%clk 0:02:58.7]}
7. Bg2 {[%clk 0:02:56.1]} 7... Nf6 {[%clk 0:02:59.3]} 8. O-O {[%clk 0:02:55.7]}
8... Nxd4 {[%clk 0:02:59.8]} 9. Qxd4 {[%clk 0:02:55.2]} 9... Bc5 {[%clk
0:03:00.4]} 10. Qd1 {[%clk 0:02:55.2]} 10... h5 {[%clk 0:02:56.4]} 11. Bf4
{[%clk 0:02:48.3]} 11... d6 {[%clk 0:02:51.5]} 12. Na4 {[%clk 0:02:47.8]} 12...
e5 {[%clk 0:02:51.1]} 13. Nxc5 {[%clk 0:02:39.3]} 13... exf4 {[%clk 0:02:47.8]}
14. Nd3 {[%clk 0:02:39.4]} 14... fxg3 {[%clk 0:02:47.4]} 15. hxg3 {[%clk
0:02:28.6]} 15... Bg4 {[%clk 0:02:27.7]} 16. Qd2 {[%clk 0:02:21.8]} 16... h4
{[%clk 0:02:25.2]} 17. e5 {[%clk 0:02:09.1]} 17... h3 {[%clk 0:01:43.8]} 18.
exf6 {[%clk 0:01:57.3]} 18... hxg2 {[%clk 0:01:35.2]} 19. Rfe1+ {[%clk
0:01:53.3]} 19... Kd8 {[%clk 0:01:13.1]} 20. Ne5 {[%clk 0:01:46.7]} 20... Bd7
{[%clk 0:00:38.1]} 21. Nxf7+ {[%clk 0:01:42.3]} 21... Kc8 {[%clk 0:00:35.5]} 22.
Nxh8 {[%clk 0:01:42.6]} 1-0

[Event "*** SCC Grand Prix: Titled Tuesday Blitz"]
[Site "Chess.com"]
[Date "2020.06.09"]
[Round "2"]
[White "novendrapriasmoro"]
[Black "pitterson"]
[Result "1-0"]
[WhiteElo "2672"]
[BlackElo "2332"]
[TimeControl "180+1"]
[EndTime "9:15:55 PDT"]
[Termination "novendrapriasmoro won by checkmate"]

1. e4 {[%clk 0:03:00.9]} 1... d6 {[%clk 0:02:59.7]} 2. d4 {[%clk 0:03:00.8]}
2... Nf6 {[%clk 0:02:59.1]} 3. Nc3 {[%clk 0:03:00.8]} 3... Nbd7 {[%clk
0:02:59.1]} 4. Nf3 {[%clk 0:03:00.4]} 4... e5 {[%clk 0:02:59]} 5. Bc4 {[%clk
0:03:00.7]} 5... Be7 {[%clk 0:02:59]} 6. O-O {[%clk 0:03:01]} 6... O-O {[%clk
0:02:58.9]} 7. a4 {[%clk 0:03:01.2]} 7... c6 {[%clk 0:02:58.8]} 8. Re1 {[%clk
0:03:01.4]} 8... b6 {[%clk 0:02:56.7]} 9. h3 {[%clk 0:03:00.4]} 9... a6 {[%clk
0:02:54.3]} 10. Be3 {[%clk 0:02:58.2]} 10... Bb7 {[%clk 0:02:48.5]} 11. Qd2
{[%clk 0:02:48.8]} 11... Qc7 {[%clk 0:02:46.1]} 12. Bg5 {[%clk 0:02:37.6]} 12...
b5 {[%clk 0:02:40.6]} 13. axb5 {[%clk 0:02:36.7]} 13... axb5 {[%clk 0:02:39.6]}
14. Bd3 {[%clk 0:02:31]} 14... b4 {[%clk 0:02:28.4]} 15. Ne2 {[%clk 0:02:30.5]}
15... c5 {[%clk 0:02:27.3]} 16. dxe5 {[%clk 0:02:27]} 16... dxe5 {[%clk
0:02:21.9]} 17. Ng3 {[%clk 0:02:26.3]} 17... c4 {[%clk 0:02:14.4]} 18. Bf1
{[%clk 0:02:24.7]} 18... c3 {[%clk 0:02:01.7]} 19. bxc3 {[%clk 0:02:23.8]} 19...
bxc3 {[%clk 0:02:01.1]} 20. Qe3 {[%clk 0:02:22.9]} 20... Bc5 {[%clk 0:01:56.6]}
21. Qd3 {[%clk 0:02:19.8]} 21... Qb6 {[%clk 0:01:49.6]} 22. Be3 {[%clk
0:01:50.4]} 22... Ba6 {[%clk 0:01:46.7]} 23. Rxa6 {[%clk 0:01:46.4]} 23... Rxa6
{[%clk 0:01:30.6]} 24. Qxa6 {[%clk 0:01:45.3]} 24... Qxa6 {[%clk 0:01:29.9]} 25.
Bxa6 {[%clk 0:01:46.2]} 25... Bxe3 {[%clk 0:01:29.5]} 26. Rxe3 {[%clk
0:01:46.8]} 26... Nc5 {[%clk 0:01:27.5]} 27. Bc4 {[%clk 0:01:46.2]} 27... Rd8
{[%clk 0:01:18.2]} 28. Nxe5 {[%clk 0:01:43.3]} 28... Rd2 {[%clk 0:01:15.8]} 29.
Bxf7+ {[%clk 0:01:40.9]} 29... Kf8 {[%clk 0:01:13.5]} 30. Rxc3 {[%clk 0:01:41]}
30... Ncxe4 {[%clk 0:00:59.6]} 31. Rc8+ {[%clk 0:01:39]} 31... Ke7 {[%clk
0:00:58.1]} 32. Nf5# {[%clk 0:01:38.9]} 1-0

[Event "*** SCC Grand Prix: Titled Tuesday Blitz"]
[Site "Chess.com"]
[Date "2020.06.09"]
[Round "2"]
[White "bascheyaro"]
[Black "Danfii"]
[Result "1-0"]
[WhiteElo "2741"]
[BlackElo "2385"]
[TimeControl "180+1"]
[EndTime "9:15:56 PDT"]
[Termination "bascheyaro won by resignation"]

1. d4 {[%clk 0:03:00.9]} 1... Nf6 {[%clk 0:02:59.6]} 2. c4 {[%clk 0:02:59.6]}
2... e6 {[%clk 0:02:59.5]} 3. Nf3 {[%clk 0:02:58.8]} 3... b6 {[%clk 0:02:59.4]}
4. g3 {[%clk 0:02:58.4]} 4... Ba6 {[%clk 0:02:59.3]} 5. b3 {[%clk 0:02:58.2]}
5... Bb4+ {[%clk 0:02:57.7]} 6. Bd2 {[%clk 0:02:58.1]} 6... Be7 {[%clk
0:02:58.2]} 7. Bg2 {[%clk 0:02:58.4]} 7... O-O {[%clk 0:02:57.9]} 8. O-O {[%clk
0:02:58.2]} 8... d5 {[%clk 0:02:57.8]} 9. Nc3 {[%clk 0:02:57.3]} 9... Nbd7
{[%clk 0:02:46.8]} 10. cxd5 {[%clk 0:02:55.7]} 10... exd5 {[%clk 0:02:46.9]} 11.
Re1 {[%clk 0:02:54.1]} 11... Bb7 {[%clk 0:02:39.5]} 12. Rc1 {[%clk 0:02:43.1]}
12... Re8 {[%clk 0:02:37.8]} 13. Bf4 {[%clk 0:02:37.5]} 13... c5 {[%clk
0:02:19.9]} 14. Nb5 {[%clk 0:02:35.2]} 14... Nh5 {[%clk 0:01:56.1]} 15. Bc7
{[%clk 0:02:07.9]} 15... Qc8 {[%clk 0:01:53.5]} 16. dxc5 {[%clk 0:02:06.2]}
16... bxc5 {[%clk 0:01:37.1]} 17. Bd6 {[%clk 0:02:05.6]} 17... Bc6 {[%clk
0:01:06.8]} 18. Bxe7 {[%clk 0:01:56.3]} 18... Rxe7 {[%clk 0:01:07.7]} 19. Nbd4
{[%clk 0:01:39]} 19... cxd4 {[%clk 0:00:55]} 20. Nxd4 {[%clk 0:01:38.6]} 20...
Nhf6 {[%clk 0:00:34.7]} 21. Nxc6 {[%clk 0:01:36.7]} 1-0